Workbook

Sheet Sheet1
B1: Parametric Curves
B2: in Space
B4: This DIGMath module lets you investigate
B5: the graph of a parametric curve in space
B6: based on the parametric functions
C7: x = f(t), y = g(t), and z = h(t) | P7: ="x from "&TEXT(xMin,"#.###")&" to " &TEXT(xMax,"#.###") -> x from -1. to 1.
B8: on any interval from t = a to t = b.
P9: ="y from "&TEXT(yMin,"#.###")&" to " &TEXT(yMax,"#.###") -> y from -1. to 1.
A11: Enter the first function in terms of t: x = f(t) = | F11: sin(t) | P11: ="z from "&TEXT(zMin,"#.###")&" to " &TEXT(zMax,"#.###") -> z from . to 6.28
A13: Enter the second function in terms of t: y = g(t) = | F13: cos(t)
A15: Enter the third function in terms of t: z = h(t) = | F15: t
A18: Now enter the interval for t :
B19: Starting value a = | D19: 0
B20: Ending value b = | D20: 6.28 | I20: The graph of the parametric functions
J21: x = | K21: =F11 -> sin(t)
J22: y = | K22: =F13 -> cos(t)
J23: y = | K23: =F15 -> t
A24: Click each item below for suggestions and investigations
B25: Item 1 | I25: The tracing point on the curve is t0 = | N25: =J26 -> 2.644870259
B26: Item 2 | I26: t = | J26: =D19+K26*Sheet2!B12 -> 2.645 | K26: 211
B27: Item 3 | I27: x = | J27: =LOOKUP(J26,Sheet2!C3:C504,Sheet2!D3:D504) -> 0.477
B28: Item 4 | I28: y = | J28: =LOOKUP(J26,Sheet2!C3:C504,Sheet2!E3:E504) -> -0.879
I29: z = | J29: =LOOKUP(J26,Sheet2!C3:C505,Sheet2!F3:F505) -> 2.645
A32: To access/download all the DIGMath Apps for Calculus
A33: Click this link: | C33: DIGMath for Calculus
A35: Created by: Sheldon P. Gordon
A36: Farmingdale State College
A37: Development of this module was supported by the
A38: NSF's Division of Undergraduate Education
A39: under grants DUE-0310123 and DUE-0442160.

Sheet Sheet2
C1: t | D1: x = f(t) | E1: y = g(t) | F1: z = h(t) | G1: H | H1: V | K1: Tracing point | P1: m > 0 | T1: m < 0
G2: H=y-x/sq(2) | H2: V=z-x/sq(2) | O2: xl = | P2: =IF(x0<xMin+80*dx,xMin,x0-80*dx) -> 0.1571865988 | Q2: =y0+m*(P$2-x0) -> -1.052239011 | R2: = yl | S2: xl = | T2: =IF(x0<xMin+80*dx,xMin,x0-80*dx) -> 0.1571865988 | U2: =y0+m*(T$2-x0) -> -1.052239011 | V2: = yl
C3: =a -> 0 | D3: =SIN(t) -> 0 | E3: =COS(t) -> 1 | F3: =t -> 0 | G3: =E3-D3/SQRT(2) -> 1 | H3: =F3-D3/SQRT(2) -> 0 | K3: 0 | L3: 0 | O3: xr = | P3: =IF(x0>xMax-80*dx,xMax,x0+80*dx) -> 0.7959065988 | Q3: =y0+m*(P3-x0) -> -0.7060594158 | R3: = yR | S3: xr = | T3: =IF(x0>xMax-80*dx,xMax,x0+80*dx) -> 0.7959065988 | U3: =y0+m*(T3-x0) -> -0.7060594158 | V3: = yR
C4: =C3+B$12 -> 0.01253493014 | D4: 0.01253460188 | E4: 0.9999214388 | F4: 0.01253493014 | G4: =E4-D4/SQRT(2) -> 0.9910581368 | H4: =F4-D4/SQRT(2) -> 0.003671628147 | K4: =Sheet1!J28-Sheet1!J27/SQRT(2) -> -1.216118545 | L4: =Sheet1!J29-Sheet1!J27/SQRT(2) -> 2.307900928
C5: =C4+B$12 -> 0.02506986028 | D5: 0.0250672343 | E5: 0.9996857675 | F5: 0.02506986028 | G5: 0.9819605562 | H5: 0.007344648918
C6: 0.03760479042 | D6: 0.0375959281 | E6: 0.9992930232 | F6: 0.03760479042 | G6: 0.9727086875 | H6: 0.01102045472 | O6: xL = | P6: =IF(xSlope=0,x0,IF(Q$2<yMin,x0+(yMin-y0)/m,P$2)) -> 0.2535905483 | Q6: yL = | R6: =IF(xSlope=0,yMin,IF(Q$2<yMin,yMin,Q$2)) -> -0.9999890731 | S6: xL = | T6: =IF(m=0,x0,IF(U$2>yMax,x0+(yMax-y0)/m,T$2)) -> 0.1571865988 | U6: yL = | V6: =IF(m=0,yMin,IF(U$2>yMax,yMax,U$2)) -> -1.052239011
C7: 0.05013972056 | D7: 0.05011871473 | E7: 0.9987432675 | F7: 0.05013972056 | G7: 0.9633039845 | H7: 0.01470043751 | O7: xR = | P7: =IF(xSlope=0,x0,IF(Q$3>yMax,x0+(yMax-y0)/m,P$3)) -> 0.7959065988 | Q7: yR = | R7: =IF(xSlope=0,yMax,IF(Q$3>yMax,yMax,Q$3)) -> -0.7060594158 | S7: xR = | T7: =IF(m=0,x0,IF(U$3<yMin,x0+(yMin-y0)/m,T$3)) -> 0.7959065988 | U7: yR = | V7: =IF(m=0,yMax,IF(U$3<yMin,yMin,U$3)) -> -0.7060594158
C8: 0.0626746507 | D8: 0.06263362658 | E8: 0.9980365869 | F8: 0.0626746507 | G8: 0.9537479248 | H8: 0.01838598861 | J8: y' | K8: =LOOKUP(Sheet1!$N$25+0.0001,Sheet2!C505:C1005,E505:E1005)-LOOKUP(Sheet1!$N$25,Sheet2!C$3:C$504,E3:E504) -> -4.765026406e-05 | L8: =K8/0.0001 -> -0.4765026406
C9: 0.07520958084 | D9: 0.07513869729 | E9: 0.9971730924 | F9: 0.07520958084 | G9: 0.94404201 | H9: 0.02207849845 | J9: x' | K9: =LOOKUP(Sheet1!$N$25+0.0001,Sheet2!C505:C1005,D505:D1005)-LOOKUP(Sheet1!$N$25,Sheet2!C$3:C$504,D3:D504) -> -8.791730391e-05 | L9: =K9/0.0001 -> -0.8791730391
C10: 0.08774451098 | D10: 0.08763196203 | E10: 0.9961529196 | F10: 0.08774451098 | G10: 0.934187765 | H10: 0.02577935638 | P10: Origin in H-V
C11: 0.1002794411 | D11: 0.1001114578 | E11: 0.9949762289 | F11: 0.1002794411 | G11: 0.9241867382 | H11: 0.02948995042 | J11: slope | K11: =L8/L9 -> 0.5419895963
A12: delta t = | B12: =(Sheet1!D20-Sheet1!D19)/501 -> 0.01253493014 | C12: 0.1128143713 | D12: 0.1125752239 | E12: 0.9936432051 | F12: 0.1128143713 | G12: 0.9140405009 | H12: 0.03321166707
C13: 0.1253493014 | D13: 0.1250213018 | E13: 0.9921540576 | F13: 0.1253493014 | G13: 0.9037506473 | H13: 0.0369458911
C14: 0.1378842315 | D14: 0.1374477361 | E14: 0.9905090206 | F14: 0.1378842315 | G14: 0.8933187943 | H14: 0.04069400528 | J14: xMin = | K14: =MIN(D3:D504) -> -0.9999997227 | M14: x0 = | N14: =Sheet1!J27 -> 0.4765465988 | P14: Axes
C15: 0.1504191617 | D15: 0.1498525743 | E15: 0.9887083523 | F15: 0.1504191617 | G15: 0.8827465809 | H15: 0.04445739023 | J15: xMax = | K15: =MAX(D3:D504) -> 0.9999922773 | P15: x
C16: 0.1629540918 | D16: 0.1622338673 | E16: 0.9867523359 | F16: 0.1629540918 | G16: 0.8720356682 | H16: 0.04823742414 | J16: yMin = | K16: =MIN(E3:E504) -> -0.9999890731 | M16: y0 = | N16: =Sheet1!J28 -> -0.8791492132 | P16: 0 | Q16: 0
C17: 0.175489022 | D17: 0.1745896697 | E17: 0.9846412785 | F17: 0.175489022 | G17: 0.8611877391 | H17: 0.05203548262 | J17: yMax = | K17: =MAX(E3:E504) -> 1 | P17: =HMin -> -0.7071065851 | Q17: =VMin -> -0.7071065851
C18: 0.1880239521 | D18: 0.1869180401 | E18: 0.9823755119 | F18: 0.1880239521 | G18: 0.8502044982 | H18: 0.05585293841 | J18: zMin = | K18: =MIN(F3:F505) -> 0 | M18: H Min = | N18: =xMin/SQRT(2) -> -0.7071065851 | P18: y
C19: 0.2005588822 | D19: 0.1992170415 | E19: 0.979955392 | F19: 0.2005588822 | G19: 0.839087671 | H19: 0.05969116124 | J19: zMax = | K19: =MAX(F3:F505) -> 6.28 | M19: H Max = | N19: =yMax -> 1 | P19: 0 | Q19: 0
C20: 0.2130938124 | D20: 0.2114847415 | E20: 0.9773812992 | F20: 0.2130938124 | G20: 0.8278390044 | H20: 0.06355151753 | J20: dx = | K20: =(K15-K14)/501 -> 0.003992 | M20: V Min = | N20: =xMin/SQRT(2) -> -0.7071065851 | P20: =HMax -> 1 | Q20: 0
C21: 0.2256287425 | D21: 0.2237192125 | E21: 0.9746536379 | F21: 0.2256287425 | G21: 0.8164602657 | H21: 0.06743537028 | J21: dy = | K21: =(K17-K16)/501 -> 0.003991994158 | M21: V Max = | N21: =K19 -> 6.28 | P21: z
C22: 0.2381636727 | D22: 0.2359185322 | E22: 0.9717728367 | F22: 0.2381636727 | G22: 0.8049532428 | H22: 0.07134407875 | P22: 0 | Q22: 0
C23: 0.2506986028 | D23: 0.2480807838 | E23: 0.9687393482 | F23: 0.2506986028 | G23: 0.7933197437 | H23: 0.07527899832 | P23: 0 | Q23: =VMax -> 6.28
C24: 0.2632335329 | D24: 0.2602040563 | E24: 0.965553649 | F24: 0.2632335329 | G24: 0.7815615963 | H24: 0.07924148024 | J24: xl = | K24: =IF(m>=0,P6,T6) -> 0.2535905483 | L24: =IF(m>=0,R6,V6) -> -0.9999890731 | M24: = yl
C25: 0.2757684631 | D25: 0.2722864449 | E25: 0.9622162397 | F25: 0.2757684631 | G25: 0.769680648 | H25: 0.08323287144 | J25: xr = | K25: =IF(m>=0,P7,T7) -> 0.7959065988 | L25: =IF(m>=0,R7,V7) -> -0.7060594158 | M25: = yR
C26: 0.2883033932 | D26: 0.2843260513 | E26: 0.9587276446 | F26: 0.2883033932 | G26: 0.7576787657 | H26: 0.08725451429
C27: 0.3008383234 | D27: 0.2963209836 | E27: 0.955088412 | F27: 0.3008383234 | G27: 0.745557835 | H27: 0.09130774643
C28: 0.3133732535 | D28: 0.3082693573 | E28: 0.9512991135 | F28: 0.3133732535 | G28: 0.7333197605 | H28: 0.09539390052
C29: 0.3259081836 | D29: 0.3201692949 | E29: 0.9473603446 | F29: 0.3259081836 | G29: 0.7209664651 | H29: 0.09951430406
C30: 0.3384431138 | D30: 0.3320189268 | E30: 0.9432727242 | F30: 0.3384431138 | G30: 0.7084998896 | H30: 0.1036702791
C31: 0.3509780439 | D31: 0.3438163911 | E31: 0.9390368945 | F31: 0.3509780439 | G31: 0.6959219929 | H31: 0.1078631423
C32: 0.3635129741 | D32: 0.3555598341 | E32: 0.934653521 | F32: 0.3635129741 | G32: 0.6832347513 | H32: 0.1120942043
C33: 0.3760479042 | D33: 0.3672474106 | E33: 0.9301232926 | F33: 0.3760479042 | G33: 0.6704401581 | H33: 0.1163647698
C34: 0.3885828343 | D34: 0.3788772844 | E34: 0.9254469209 | F34: 0.3885828343 | G34: 0.6575402238 | H34: 0.1206761373
C35: 0.4011177645 | D35: 0.3904476281 | E35: 0.9206251407 | F35: 0.4011177645 | G35: 0.6445369752 | H35: 0.125029599
C36: 0.4136526946 | D36: 0.4019566237 | E36: 0.9156587097 | F36: 0.4136526946 | G36: 0.6314324554 | H36: 0.1294264403
C37: 0.4261876248 | D37: 0.4134024629 | E37: 0.9105484082 | F37: 0.4261876248 | G37: 0.6182287234 | H37: 0.1338679399
C38: 0.4387225549 | D38: 0.4247833473 | E38: 0.9052950391 | F38: 0.4387225549 | G38: 0.6049278538 | H38: 0.1383553695
C39: 0.451257485 | D39: 0.4360974887 | E39: 0.8998994279 | F39: 0.451257485 | G39: 0.5915319364 | H39: 0.1428899935
C40: 0.4637924152 | D40: 0.4473431094 | E40: 0.8943624223 | F40: 0.4637924152 | G40: 0.5780430762 | H40: 0.147473069
C41: 0.4763273453 | D41: 0.4585184425 | E41: 0.8886848924 | F41: 0.4763273453 | G41: 0.5644633924 | H41: 0.1521058453
C42: 0.4888622754 | D42: 0.469621732 | E42: 0.8828677301 | F42: 0.4888622754 | G42: 0.5507950188 | H42: 0.1567895641
C43: 0.5013972056 | D43: 0.4806512335 | E43: 0.8769118495 | F43: 0.5013972056 | G43: 0.5370401029 | H43: 0.161525459
C44: 0.5139321357 | D44: 0.4916052139 | E44: 0.8708181864 | F44: 0.5139321357 | G44: 0.523200806 | H44: 0.1663147553
C45: 0.5264670659 | D45: 0.5024819521 | E45: 0.8645876982 | F45: 0.5264670659 | G45: 0.5092793025 | H45: 0.1711586701
C46: 0.539001996 | D46: 0.5132797391 | E46: 0.8582213639 | F46: 0.539001996 | G46: 0.4952777798 | H46: 0.1760584119
C47: 0.5515369261 | D47: 0.5239968783 | E47: 0.8517201838 | F47: 0.5515369261 | G47: 0.4811984378 | H47: 0.1810151802
C48: 0.5640718563 | D48: 0.5346316859 | E48: 0.8450851794 | F48: 0.5640718563 | G48: 0.4670434888 | H48: 0.1860301657
C49: 0.5766067864 | D49: 0.5451824909 | E49: 0.8383173931 | F49: 0.5766067864 | G49: 0.4528151569 | H49: 0.1911045501
C50: 0.5891417166 | D50: 0.5556476355 | E50: 0.8314178884 | F50: 0.5891417166 | G50: 0.4385156775 | H50: 0.1962395056
C51: 0.6016766467 | D51: 0.5660254753 | E51: 0.8243877493 | F51: 0.6016766467 | G51: 0.4241472974 | H51: 0.2014361948
C52: 0.6142115768 | D52: 0.5763143799 | E52: 0.8172280805 | F52: 0.6142115768 | G52: 0.4097122743 | H52: 0.2066957707
C53: 0.626746507 | D53: 0.5865127326 | E53: 0.8099400067 | F53: 0.626746507 | G53: 0.3952128762 | H53: 0.2120193765
C54: 0.6392814371 | D54: 0.596618931 | E54: 0.8025246732 | F54: 0.6392814371 | G54: 0.3806513813 | H54: 0.2174081452
C55: 0.6518163673 | D55: 0.6066313872 | E55: 0.7949832452 | F55: 0.6518163673 | G55: 0.3660300776 | H55: 0.2228631997
C56: 0.6643512974 | D56: 0.616548528 | E56: 0.7873169074 | F56: 0.6643512974 | G56: 0.3513512623 | H56: 0.2283856523
C57: 0.6768862275 | D57: 0.6263687952 | E57: 0.7795268645 | F57: 0.6768862275 | G57: 0.3366172419 | H57: 0.233976605
C58: 0.6894211577 | D58: 0.6360906458 | E58: 0.7716143404 | F58: 0.6894211577 | G58: 0.3218303313 | H58: 0.2396371486
C59: 0.7019560878 | D59: 0.6457125523 | E59: 0.7635805785 | F59: 0.7019560878 | G59: 0.306992854 | H59: 0.2453683634
C60: 0.714491018 | D60: 0.6552330029 | E60: 0.7554268409 | F60: 0.714491018 | G60: 0.2921071413 | H60: 0.2511713184
C61: 0.7270259481 | D61: 0.6646505017 | E61: 0.7471544088 | F61: 0.7270259481 | G61: 0.2771755319 | H61: 0.2570470712
C62: 0.7395608782 | D62: 0.673963569 | E62: 0.738764582 | F62: 0.7395608782 | G62: 0.2622003721 | H62: 0.2629966683
C63: 0.7520958084 | D63: 0.6831707415 | E63: 0.7302586788 | F63: 0.7520958084 | G63: 0.2471840147 | H63: 0.2690211443
C64: 0.7646307385 | D64: 0.6922705726 | E64: 0.7216380355 | F64: 0.7646307385 | G64: 0.2321288192 | H64: 0.2751215222
C65: 0.7771656687 | D65: 0.7012616325 | E65: 0.7129040067 | F65: 0.7771656687 | G65: 0.217037151 | H65: 0.2812988129
C66: 0.7897005988 | D66: 0.7101425085 | E66: 0.7040579647 | F66: 0.7897005988 | G66: 0.2019113814 | H66: 0.2875540155
C67: 0.8022355289 | D67: =SIN(t) -> 0.7189118051 | E67: =COS(t) -> 0.6951012995 | F67: =t -> 0.8022355289 | G67: 0.186753887 | H67: 0.2938881165
C68: 0.8147704591 | D68: 0.7275681446 | E68: 0.6860354182 | F68: 0.8147704591 | G68: =E68-D68/SQRT(2) -> 0.1715670494 | H68: =F68-D68/SQRT(2) -> 0.3003020903
C69: =C68+B$12 -> 0.8273053892 | D69: 0.7361101668 | E69: 0.6768617454 | F69: 0.8273053892 | G69: 0.1563532547 | H69: 0.3067968986
C70: 0.8398403194 | D70: 0.7445365296 | E70: 0.6675817224 | F70: 0.8398403194 | G70: 0.1411148935 | H70: 0.3133734904
C71: 0.8523752495 | D71: 0.752845909 | E71: 0.6581968074 | F71: 0.8523752495 | G71: 0.12585436 | H71: 0.320032802
C72: 0.8649101796 | D72: 0.7610369995 | E72: 0.6487084749 | F72: 0.8649101796 | G72: 0.1105740519 | H72: 0.3267757566
C73: 0.8774451098 | D73: 0.769108514 | E73: 0.6391182158 | F73: 0.8774451098 | G73: 0.0952763701 | H73: 0.3336032641
C74: 0.8899800399 | D74: 0.7770591843 | E74: 0.6294275369 | F74: 0.8899800399 | G74: 0.07996371829 | H74: 0.3405162213
C75: 0.9025149701 | D75: 0.7848877611 | E75: 0.6196379608 | F75: 0.9025149701 | G75: 0.06463850239 | H75: 0.3475155117
C76: 0.9150499002 | D76: 0.7925930146 | E76: 0.6097510256 | F76: 0.9150499002 | G76: 0.04930313033 | H76: 0.3546020049
C77: 0.9275848303 | D77: 0.8001737339 | E77: 0.599768285 | F77: 0.9275848303 | G77: 0.03396001164 | H77: 0.361776557
C78: 0.9401197605 | D78: 0.8076287279 | E78: 0.5896913073 | F78: 0.9401197605 | G78: 0.01861155707 | H78: 0.3690400103
C79: 0.9526546906 | D79: 0.8149568254 | E79: 0.5795216758 | F79: 0.9526546906 | G79: 0.00326017821 | H79: 0.376393193
C80: 0.9651896208 | D80: 0.8221568749 | E80: 0.5692609885 | F80: 0.9651896208 | G80: -0.0120917129 | H80: 0.3838369193
C81: 0.9777245509 | D81: 0.8292277451 | E81: 0.5589108576 | F81: 0.9777245509 | G81: -0.02744170412 | H81: 0.3913719892
C82: 0.990259481 | D82: 0.8361683251 | E82: 0.5484729092 | F82: 0.990259481 | G82: -0.04278738365 | H82: 0.3989991882
C83: 1.002794411 | D83: 0.8429775242 | E83: 0.5379487835 | F83: 1.002794411 | G83: -0.05812634031 | H83: 0.4067192874
C84: 1.015329341 | D84: 0.8496542727 | E84: 0.5273401339 | F84: 1.015329341 | G84: -0.07345616402 | H84: 0.4145330434
C85: 1.027864271 | D85: 0.8561975215 | E85: 0.5166486274 | F85: 1.027864271 | G85: -0.08877444613 | H85: 0.422441198
C86: 1.040399202 | D86: 0.8626062425 | E86: 0.5058759438 | F86: 1.040399202 | G86: -0.1040787798 | H86: 0.4304444781
C87: 1.052934132 | D87: 0.8688794286 | E87: 0.4950237757 | F87: 1.052934132 | G87: -0.1193667603 | H87: 0.4385435957
C88: 1.065469062 | D88: 0.8750160944 | E88: 0.4840938283 | F88: 1.065469062 | G88: -0.1346359857 | H88: 0.4467392479
C89: 1.078003992 | D89: 0.8810152755 | E89: 0.4730878189 | F89: 1.078003992 | G89: -0.1498840567 | H89: 0.4550321164
C90: 1.090538922 | D90: 0.8868760293 | E90: 0.4620074768 | F90: 1.090538922 | G90: -0.1651085775 | H90: 0.4634228678
C91: 1.103073852 | D91: 0.892597435 | E91: 0.450854543 | F91: 1.103073852 | G91: -0.1803071561 | H91: 0.4719121531
C92: 1.115608782 | D92: 0.8981785937 | E92: 0.4396307699 | F92: 1.115608782 | G92: -0.1954774045 | H92: 0.4805006081
C93: 1.128143713 | D93: 0.9036186284 | E93: 0.4283379208 | F93: 1.128143713 | G93: -0.2106169389 | H93: 0.4891888528
C94: 1.140678643 | D94: 0.9089166843 | E94: 0.4169777703 | F94: 1.140678643 | G94: -0.2257233807 | H94: 0.4979774917
C95: 1.153213573 | D95: 0.9140719291 | E95: 0.4055521033 | F95: 1.153213573 | G95: -0.2407943563 | H95: 0.5068671133
C96: 1.165748503 | D96: 0.9190835526 | E96: 0.3940627149 | F96: 1.165748503 | G96: -0.2558274977 | H96: 0.5158582904
C97: 1.178283433 | D97: 0.9239507676 | E97: 0.3825114104 | F97: 1.178283433 | G97: -0.2708204428 | H97: 0.5249515799
C98: 1.190818363 | D98: 0.9286728091 | E98: 0.3709000048 | F98: 1.190818363 | G98: -0.285770836 | H98: 0.5341475224
C99: 1.203353293 | D99: 0.9332489354 | E99: 0.3592303225 | F99: 1.203353293 | G99: -0.3006763282 | H99: 0.5434466427
C100: 1.215888224 | D100: 0.9376784273 | E100: 0.3475041971 | F100: 1.215888224 | G100: -0.3155345774 | H100: 0.552849449
C101: 1.228423154 | D101: 0.9419605889 | E101: 0.335723471 | F101: 1.228423154 | G101: -0.3303432491 | H101: 0.5623564337
C102: 1.240958084 | D102: 0.9460947474 | E102: 0.3238899951 | F102: 1.240958084 | G102: -0.3451000164 | H102: 0.5719680723
C103: 1.253493014 | D103: 0.9500802532 | E103: 0.312005629 | F103: 1.253493014 | G103: -0.3598025607 | H103: 0.5816848243
C104: 1.266027944 | D104: 0.9539164801 | E104: 0.3000722397 | F104: 1.266027944 | G104: -0.3744485721 | H104: 0.5915071324
C105: 1.278562874 | D105: 0.9576028253 | E105: 0.2880917023 | F105: 1.278562874 | G105: -0.3890357491 | H105: 0.6014354228
C106: 1.291097804 | D106: 0.9611387097 | E106: 0.2760658993 | F106: 1.291097804 | G106: -0.4035617999 | H106: 0.6114701051
C107: 1.303632735 | D107: 0.9645235776 | E107: 0.2639967202 | F107: 1.303632735 | G107: -0.4180244422 | H107: 0.6216115722
C108: 1.316167665 | D108: 0.9677568972 | E108: 0.2518860612 | F108: 1.316167665 | G108: -0.4324214034 | H108: 0.6318602001
C109: 1.328702595 | D109: 0.9708381606 | E109: 0.2397358253 | F109: 1.328702595 | G109: -0.4467504215 | H109: 0.642216348
C110: 1.341237525 | D110: 0.9737668835 | E110: 0.2275479215 | F110: 1.341237525 | G110: -0.4610092451 | H110: 0.6526803583
C111: 1.353772455 | D111: 0.9765426058 | E111: 0.2153242649 | F111: 1.353772455 | G111: -0.4751956338 | H111: 0.6632525564
C112: 1.366307385 | D112: 0.9791648914 | E112: 0.203066776 | F112: 1.366307385 | G112: -0.4893073586 | H112: 0.6739332506
C113: 1.378842315 | D113: 0.9816333282 | E113: 0.1907773807 | F113: 1.378842315 | G113: -0.5033422023 | H113: 0.6847227324
C114: 1.391377246 | D114: 0.9839475284 | E114: 0.17845801 | F114: 1.391377246 | G114: -0.5172979596 | H114: 0.6956212758
C115: 1.403912176 | D115: 0.9861071284 | E115: 0.1661105996 | F115: 1.403912176 | G115: -0.5311724379 | H115: 0.7066291382
C116: 1.416447106 | D116: 0.9881117889 | E116: 0.1537370895 | F116: 1.416447106 | G116: -0.544963457 | H116: 0.7177465593
C117: 1.428982036 | D117: 0.9899611948 | E117: 0.1413394238 | F117: 1.428982036 | G117: -0.5586688501 | H117: 0.728973762
C118: 1.441516966 | D118: 0.9916550557 | E118: 0.1289195506 | F118: 1.441516966 | G118: -0.5722864639 | H118: 0.7403109516
C119: 1.454051896 | D119: 0.9931931053 | E119: 0.1164794212 | F119: 1.454051896 | G119: -0.5858141586 | H119: 0.7517583164
C120: 1.466586826 | D120: 0.994575102 | E120: 0.1040209902 | F120: 1.466586826 | G120: -0.5992498088 | H120: 0.7633160273
C121: 1.479121756 | D121: 0.9958008287 | E121: 0.09154621528 | F121: 1.479121756 | G121: -0.6125913034 | H121: 0.7749842378
C122: 1.491656687 | D122: 0.9968700928 | E122: 0.07905705635 | F122: 1.491656687 | G122: -0.6258365462 | H122: 0.7867630841
C123: 1.504191617 | D123: 0.9977827262 | E123: 0.06655547579 | F123: 1.504191617 | G123: -0.638983456 | H123: 0.7986526849
C124: 1.516726547 | D124: 0.9985385855 | E124: 0.05404343787 | F124: 1.516726547 | G124: -0.6520299672 | H124: 0.8106531418
C125: 1.529261477 | D125: 0.9991375521 | E125: 0.04152290851 | F125: 1.529261477 | G125: -0.6649740299 | H125: 0.8227645386
C126: 1.541796407 | D126: 0.9995795318 | E126: 0.02899585498 | F126: 1.541796407 | G126: -0.6778136103 | H126: 0.8349869419
C127: 1.554331337 | D127: 0.9998644551 | E127: 0.01646424555 | F127: 1.554331337 | G127: -0.6905466909 | H127: 0.8473204008
C128: 1.566866267 | D128: 0.9999922773 | E128: 0.003930049213 | F128: 1.566866267 | G128: -0.7031712712 | H128: 0.859764947
C129: 1.579401198 | D129: 0.9999629783 | E129: -0.008604764621 | F129: 1.579401198 | G129: -0.7156853675 | H129: 0.8723205947
C130: 1.591936128 | D130: 0.9997765627 | E130: -0.02113822645 | F130: 1.591936128 | G130: -0.7280870136 | H130: 0.8849873406
C131: 1.604471058 | D131: =SIN(t) -> 0.9994330598 | E131: =COS(t) -> -0.033668367 | F131: =t -> 1.604471058 | G131: -0.7403742609 | H131: 0.8977651639
C132: 1.617005988 | D132: 0.9989325236 | E132: -0.04619321748 | F132: 1.617005988 | G132: =E132-D132/SQRT(2) -> -0.7525451789 | H132: =F132-D132/SQRT(2) -> 0.9106540267
C133: =C132+B$12 -> 1.629540918 | D133: 0.9982750326 | E133: -0.05871080998 | F133: 1.629540918 | G133: -0.7645978551 | H133: 0.9236538731
C134: 1.642075848 | D134: 0.9974606903 | E134: -0.0712191777 | F134: 1.642075848 | G134: -0.7765303958 | H134: 0.9367646302
C135: 1.654610778 | D135: 0.9964896246 | E135: -0.08371635528 | F135: 1.654610778 | G135: -0.7883409262 | H135: 0.9499862075
C136: 1.667145709 | D136: 0.9953619879 | E136: -0.09620037915 | F136: 1.667145709 | G136: -0.8000275906 | H136: 0.9633184972
C137: 1.679680639 | D137: 0.9940779577 | E137: -0.1086692878 | F137: 1.679680639 | G137: -0.8115885527 | H137: 0.9767613738
C138: 1.692215569 | D138: 0.9926377354 | E138: -0.121121122 | F138: 1.692215569 | G138: -0.823021996 | H138: 0.9903146949
C139: 1.704750499 | D139: 0.9910415476 | E139: -0.1335539254 | F139: 1.704750499 | G139: -0.8343261242 | H139: 1.0039783
C140: 1.717285429 | D140: 0.9892896449 | E140: -0.1459657445 | F140: 1.717285429 | G140: -0.845499161 | H140: 1.017752013
C141: 1.729820359 | D141: 0.9873823026 | E141: -0.1583546291 | F141: 1.729820359 | G141: -0.8565393509 | H141: 1.031635638
C142: 1.742355289 | D142: 0.9853198204 | E142: -0.1707186327 | F142: 1.742355289 | G142: -0.8674449593 | H142: 1.045628963
C143: 1.75489022 | D143: 0.9831025224 | E143: -0.1830558125 | F143: 1.75489022 | G143: -0.8782142727 | H143: 1.059731759
C144: 1.76742515 | D144: 0.9807307569 | E144: -0.1953642301 | F144: 1.76742515 | G144: -0.8888455989 | H144: 1.073943781
C145: 1.77996008 | D145: 0.9782048967 | E145: -0.2076419517 | F145: 1.77996008 | G145: -0.8993372675 | H145: 1.088264764
C146: 1.79249501 | D146: 0.9755253385 | E146: -0.219887048 | F146: 1.79249501 | G146: -0.9096876301 | H146: 1.102694428
C147: 1.80502994 | D147: 0.9726925035 | E147: -0.2320975952 | F147: 1.80502994 | G147: -0.9198950604 | H147: 1.117232475
C148: 1.81756487 | D148: 0.9697068366 | E148: -0.2442716746 | F148: 1.81756487 | G148: -0.9299579545 | H148: 1.13187859
C149: 1.8300998 | D149: 0.9665688071 | E149: -0.2564073735 | F149: 1.8300998 | G149: -0.9398747314 | H149: 1.146632442
C150: 1.842634731 | D150: 0.9632789079 | E150: -0.268502785 | F150: 1.842634731 | G150: -0.9496438329 | H150: 1.161493683
C151: 1.855169661 | D151: 0.9598376561 | E151: -0.2805560087 | F151: 1.855169661 | G151: -0.9592637241 | H151: 1.176461945
C152: 1.867704591 | D152: 0.9562455922 | E152: -0.2925651508 | F152: 1.867704591 | G152: -0.9687328935 | H152: 1.191536848
C153: 1.880239521 | D153: 0.9525032807 | E153: -0.3045283243 | F153: 1.880239521 | G153: -0.9780498532 | H153: 1.206717992
C154: 1.892774451 | D154: 0.9486113096 | E154: -0.3164436496 | F154: 1.892774451 | G154: -0.9872131393 | H154: 1.222004961
C155: 1.905309381 | D155: 0.9445702903 | E155: -0.3283092545 | F155: 1.905309381 | G155: -0.9962213121 | H155: 1.237397324
C156: 1.917844311 | D156: 0.940380858 | E156: -0.3401232747 | F156: 1.917844311 | G156: -1.005072956 | H156: 1.25289463
C157: 1.930379242 | D157: 0.9360436707 | E157: -0.3518838539 | F157: 1.930379242 | G157: -1.013766681 | H157: 1.268496415
C158: 1.942914172 | D158: 0.9315594099 | E158: -0.3635891442 | F158: 1.942914172 | G158: -1.02230112 | H158: 1.284202196
C159: 1.955449102 | D159: 0.9269287803 | E159: -0.3752373065 | F159: 1.955449102 | G159: -1.030674933 | H159: 1.300011476
C160: 1.967984032 | D160: 0.9221525094 | E160: -0.3868265107 | F160: 1.967984032 | G160: -1.038886803 | H160: 1.315923739
C161: 1.980518962 | D161: 0.9172313477 | E161: -0.3983549357 | F161: 1.980518962 | G161: -1.046935442 | H161: 1.331938456
C162: 1.993053892 | D162: 0.9121660684 | E162: -0.4098207702 | F162: 1.993053892 | G162: -1.054819583 | H162: 1.34805508
C163: 2.005588822 | D163: 0.9069574673 | E163: -0.4212222127 | F163: 2.005588822 | G163: -1.062537988 | H163: 1.364273047
C164: 2.018123752 | D164: 0.9016063629 | E164: -0.4325574718 | F164: 2.018123752 | G164: -1.070089445 | H164: 1.380591779
C165: 2.030658683 | D165: 0.8961135959 | E165: -0.4438247664 | F165: 2.030658683 | G165: -1.077472767 | H165: 1.397010682
C166: 2.043193613 | D166: 0.8904800294 | E166: -0.4550223261 | F166: 2.043193613 | G166: -1.084686793 | H166: 1.413529145
C167: 2.055728543 | D167: 0.8847065485 | E167: -0.4661483917 | F167: 2.055728543 | G167: -1.091730391 | H167: 1.430146543
C168: 2.068263473 | D168: 0.8787940604 | E168: -0.4772012149 | F168: 2.068263473 | G168: -1.098602454 | H168: 1.446862234
C169: 2.080798403 | D169: 0.872743494 | E169: -0.488179059 | F169: 2.080798403 | G169: -1.105301902 | H169: 1.46367556
C170: 2.093333333 | D170: 0.8665558001 | E170: -0.4990801994 | F170: 2.093333333 | G170: -1.111827682 | H170: 1.480585851
C171: 2.105868263 | D171: 0.8602319508 | E171: -0.509902923 | F171: 2.105868263 | G171: -1.118178769 | H171: 1.497592418
C172: 2.118403194 | D172: 0.8537729398 | E172: -0.5206455294 | F172: 2.118403194 | G172: -1.124354165 | H172: 1.514694558
C173: 2.130938124 | D173: 0.8471797819 | E173: -0.5313063308 | F173: 2.130938124 | G173: -1.130352899 | H173: 1.531891555
C174: 2.143473054 | D174: 0.8404535131 | E174: -0.541883652 | F174: 2.143473054 | G174: -1.13617403 | H174: 1.549182676
C175: 2.156007984 | D175: 0.8335951902 | E175: -0.5523758312 | F175: 2.156007984 | G175: -1.141816643 | H175: 1.566567172
C176: 2.168542914 | D176: 0.8266058908 | E176: -0.5627812197 | F176: 2.168542914 | G176: -1.14727985 | H176: 1.584044283
C177: 2.181077844 | D177: 0.8194867131 | E177: -0.5730981827 | F177: 2.181077844 | G177: -1.152562795 | H177: 1.601613232
C178: 2.193612774 | D178: 0.8122387757 | E178: -0.5833250991 | F178: 2.193612774 | G178: -1.157664645 | H178: 1.619273228
C179: 2.206147705 | D179: 0.8048632174 | E179: -0.593460362 | F179: 2.206147705 | G179: -1.162584601 | H179: 1.637023466
C180: 2.218682635 | D180: 0.797361197 | E180: -0.6035023791 | F180: 2.218682635 | G180: -1.167321889 | H180: 1.654863125
C181: 2.231217565 | D181: 0.7897338933 | E181: -0.6134495724 | F181: 2.231217565 | G181: -1.171875764 | H181: 1.672791374
C182: 2.243752495 | D182: 0.7819825046 | E182: -0.623300379 | F182: 2.243752495 | G182: -1.176245511 | H182: 1.690807363
C183: 2.256287425 | D183: 0.774108249 | E183: -0.6330532511 | F183: 2.256287425 | G183: -1.180430443 | H183: 1.708910233
C184: 2.268822355 | D184: 0.7661123637 | E184: -0.6427066564 | F184: 2.268822355 | G184: -1.184429904 | H184: 1.727099108
C185: 2.281357285 | D185: 0.7579961049 | E185: -0.6522590781 | F185: 2.281357285 | G185: -1.188243264 | H185: 1.7453731
C186: 2.293892216 | D186: 0.7497607479 | E186: -0.6617090152 | F186: 2.293892216 | G186: -1.191869924 | H186: 1.763731306
C187: 2.306427146 | D187: 0.7414075868 | E187: -0.6710549831 | F187: 2.306427146 | G187: -1.195309315 | H187: 1.782172813
C188: 2.318962076 | D188: 0.7329379338 | E188: -0.6802955131 | F188: 2.318962076 | G188: -1.198560896 | H188: 1.800696693
C189: 2.331497006 | D189: 0.7243531199 | E189: -0.6894291535 | F189: 2.331497006 | G189: -1.201624157 | H189: 1.819302003
C190: 2.344031936 | D190: 0.7156544939 | E190: -0.6984544691 | F190: 2.344031936 | G190: -1.204498615 | H190: 1.837987791
C191: 2.356566866 | D191: 0.7068434225 | E191: -0.7073700418 | F191: 2.356566866 | G191: -1.207183819 | H191: 1.856753089
C192: 2.369101796 | D192: 0.6979212902 | E192: -0.7161744709 | F192: 2.369101796 | G192: -1.209679348 | H192: 1.875596919
C193: 2.381636727 | D193: 0.6888894988 | E193: -0.7248663728 | F193: 2.381636727 | G193: -1.211984809 | H193: 1.89451829
C194: 2.394171657 | D194: 0.6797494674 | E194: -0.7334443821 | F194: 2.394171657 | G194: -1.21409984 | H194: 1.913516199
C195: 2.406706587 | D195: =SIN(t) -> 0.6705026321 | E195: =COS(t) -> -0.7419071508 | F195: =t -> 2.406706587 | G195: -1.216024109 | H195: 1.932589629
C196: 2.419241517 | D196: 0.6611504458 | E196: -0.7502533492 | F196: 2.419241517 | G196: =E196-D196/SQRT(2) -> -1.217757313 | H196: =F196-D196/SQRT(2) -> 1.951737553
C197: =C196+B$12 -> 2.431776447 | D197: 0.651694378 | E197: -0.758481666 | F197: 2.431776447 | G197: -1.21929918 | H197: 1.970958933
C198: 2.444311377 | D198: 0.6421359144 | E198: -0.7665908083 | F198: 2.444311377 | G198: -1.220649468 | H198: 1.990252718
C199: 2.456846307 | D199: 0.6324765568 | E199: -0.7745795021 | F199: 2.456846307 | G199: -1.221807964 | H199: 2.009617845
C200: 2.469381238 | D200: 0.622717823 | E200: -0.782446492 | F200: 2.469381238 | G200: -1.222774487 | H200: 2.029053242
... 806 more rows

Sheet Defining Function
A1: Defining a Function in Excel
A3: Computers have very specific rules you must follow when defining a function. If you don't, the program will either not work at all or will work incorrectly.
A5: 1. The Variable used should be the one named in the instruction, usually x, though sometimes y, t, Q (for an angle theta),
A6: or even x and y (for a function of two variables).
A8: 2. Order of Operations: There five arithmetic operations, addition (+), subtraction (-), multiplication (*), division (/), and exponentiation or power (^). When computers see any of these operation symbols, they perform the indicated steps in a very particular order. First, the power is done. Second, products and quotients of adjacent terms is done. Third, and last, sums and differences of adjacent terms are done. So, in 10*x^3 + 5*x – 7, say with x = 2, the first pass only calculates 2^3 and ignores the multiplications and the sums and differences to calculate 2^3 = 8. The second pass looks at 10*8 + 5*2 – 7 and only does the multiplications, so it produces 80 + 10 - 7. The third pass looks at the +’s and –‘s to produce 80 + 10 – 7 = 83.
A10: 3. Parentheses If you need an operation involving more than two adjacent terms, as in Ö4^3 + 6^2, the computer would take the square root of 4 to produce 2^3 + 6^2; it would then cube the 2 and square the 6 to produce 8 + 36; and finally it would add the 8 and the 36 to get 44. If you actually wanted the square root of the entire expression, you would need to use parentheses, as in Ö(4^3 + 6^2) to tell the computer to do all the operations inside the parentheses before taking the square root. Therefore, it would calculate (4^3 + 6^2) = 64 + 36 = 100 and then take the square root of Ö100 = 10.
A12: 4. Built-In Functions Computer programs have built-in functions for most common algebraic functions. In Excel, the square root function is denoted by SQRT(…), so SQRT(100) = 10. Alternatively, you could enter it as 100^.5 or 100^(1/2); notice that parentheses are needed to have the ½ done first. The common trig functions are SIN (…), COS (…), and TAN (…), where the arguments are automatically interpreted as being in radians, not degrees. The logarithm to the base 10 is represented by LOG (…) and the logarithm with the base e, known as the natural logarithm, is LN (…). The corresponding exponential function with base e is EXP (x). If x is the variable, then each of these would be SQRT (x), SIN (x), COS (x), TAN (x), LOG (x) (for log with base 10 ), LN (x) (for log with base e ), and EXP (x).

Sheet Sheet3
